[Event "Titled Tuesday Blitz November 29 Late 2022"]
[White "Lopez Mulet, Inigo"]
[Black "Qashashvili, Alexandre"]
[WhiteFideId "22235620"]
[BlackFideId "13600842"]
[WhiteElo "2289"]
[BlackElo "2405"]
[Result "1-0"]
[Round "05"]
[TimeControl "180+1"]
[Date "2022.11.30"]
[WhiteClock "0:00:13"]
[BlackClock "0:00:09"]

1. e4 {[%clk 0:03:00]}  c6 {[%clk 0:02:46]} 2. Nf3 {[%clk 0:03:01]}  d5 {[%clk 0:02:47]} 3. Nc3 {[%clk 0:03:01]}  dxe4 {[%clk 0:02:46]} 4. Nxe4 {[%clk 0:03:02]}  Nf6 {[%clk 0:02:46]} 5. Ng3 {[%clk 0:03:03]}  Bg4 {[%clk 0:02:44]} 6. h3 {[%clk 0:03:03]}  Bxf3 {[%clk 0:02:45]} 7. Qxf3 {[%clk 0:03:04]}  Qd5 {[%clk 0:02:44]} 8. Be2 {[%clk 0:03:03]}  Qxf3 {[%clk 0:02:43]} 9. Bxf3 {[%clk 0:03:04]}  Nbd7 {[%clk 0:02:43]} 10. O-O {[%clk 0:03:02]}  e6 {[%clk 0:02:43]} 11. d4 {[%clk 0:03:02]}  Bd6 {[%clk 0:02:44]} 12. c3 {[%clk 0:03:02]}  Bxg3 {[%clk 0:02:42]} 13. fxg3 {[%clk 0:03:03]}  O-O {[%clk 0:02:41]} 14. Bf4 {[%clk 0:03:02]}  Nd5 {[%clk 0:02:39]} 15. Bd6 {[%clk 0:03:00]}  Rfe8 {[%clk 0:02:38]} 16. Rae1 {[%clk 0:03:00]}  N7f6 {[%clk 0:02:35]} 17. h4 {[%clk 0:02:56]}  h6 {[%clk 0:02:33]} 18. g4 {[%clk 0:02:56]}  Rad8 {[%clk 0:02:28]} 19. Be5 {[%clk 0:02:52]}  Nd7 {[%clk 0:02:23]} 20. Bg3 {[%clk 0:02:49]}  N7b6 {[%clk 0:02:20]} 21. Kh2 {[%clk 0:02:45]}  Nc4 {[%clk 0:02:19]} 22. Rf2 {[%clk 0:02:44]}  Rd7 {[%clk 0:01:59]} 23. g5 {[%clk 0:02:40]}  hxg5 {[%clk 0:01:57]} 24. hxg5 {[%clk 0:02:41]}  g6 {[%clk 0:01:56]} 25. Rh1 {[%clk 0:02:37]}  Kf8 {[%clk 0:01:54]} 26. b3 {[%clk 0:02:33]}  Nce3 {[%clk 0:01:51]} 27. Be5 {[%clk 0:02:25]}  Nxc3 {[%clk 0:01:37]} 28. Bf6 {[%clk 0:02:07]}  Ncd5 {[%clk 0:01:25]} 29. Bxd5 {[%clk 0:01:12]}  Nxd5 {[%clk 0:00:55]} 30. Kg3 {[%clk 0:00:55]}  Nxf6 {[%clk 0:00:52]} 31. gxf6 {[%clk 0:00:56]}  Kg8 {[%clk 0:00:48]} 32. Rf4 {[%clk 0:00:56]}  Rd5 {[%clk 0:00:37]} 33. Rfh4 {[%clk 0:00:48]}  Rh5 {[%clk 0:00:31]} 34. Rxh5 {[%clk 0:00:47]}  gxh5 {[%clk 0:00:32]} 35. Rxh5 {[%clk 0:00:40]}  Rd8 {[%clk 0:00:30]} 36. Rh4 {[%clk 0:00:40]}  Rd5 {[%clk 0:00:28]} 37. Rf4 {[%clk 0:00:35]}  Kh7 {[%clk 0:00:25]} 38. Kf3 {[%clk 0:00:33]}  Kg6 {[%clk 0:00:23]} 39. g4 {[%clk 0:00:34]}  Kg5 {[%clk 0:00:20]} 40. Ke4 {[%clk 0:00:34]}  b6 {[%clk 0:00:17]} 41. Rf1 {[%clk 0:00:32]}  Kxg4 {[%clk 0:00:14]} 42. Rg1+ {[%clk 0:00:32]}  Kh5 {[%clk 0:00:14]} 43. Rg7 {[%clk 0:00:33]}  c5 {[%clk 0:00:13]} 44. dxc5 {[%clk 0:00:32]}  Rxc5 {[%clk 0:00:14]} 45. Rxf7 {[%clk 0:00:32]}  Ra5 {[%clk 0:00:14]} 46. a4 {[%clk 0:00:32]}  Kg6 {[%clk 0:00:14]} 47. Rf8 {[%clk 0:00:31]}  Rf5 {[%clk 0:00:13]} 48. Ra8 {[%clk 0:00:31]}  a5 {[%clk 0:00:12]} 49. Ra6 {[%clk 0:00:31]}  Kxf6 {[%clk 0:00:12]} 50. Rxb6 {[%clk 0:00:31]}  Re5+ {[%clk 0:00:11]} 51. Kd4 {[%clk 0:00:31]}  Rh5 {[%clk 0:00:09]} 52. Rb5 {[%clk 0:00:23]}  Rxb5 {[%clk 0:00:07]} 53. axb5 {[%clk 0:00:24]}  Ke7 {[%clk 0:00:07]} 54. Kc5 {[%clk 0:00:20]}  Kd7 {[%clk 0:00:06]} 55. Kb6 {[%clk 0:00:20]}  e5 {[%clk 0:00:06]} 56. Ka7 {[%clk 0:00:20]}  e4 {[%clk 0:00:06]} 57. b6 {[%clk 0:00:21]}  e3 {[%clk 0:00:06]} 58. b7 {[%clk 0:00:22]}  e2 {[%clk 0:00:07]} 59. b8=Q {[%clk 0:00:22]}  e1=Q {[%clk 0:00:08]} 60. Qb7+ {[%clk 0:00:22]}  Kd8 {[%clk 0:00:08]} 61. Qb6+ {[%clk 0:00:20]}  Kd7 {[%clk 0:00:08]} 62. Ka6 {[%clk 0:00:19]}  Qe2+ {[%clk 0:00:07]} 63. Kxa5 {[%clk 0:00:16]}  Kc8 {[%clk 0:00:08]} 64. Qa6+ {[%clk 0:00:10]}  Qxa6+ {[%clk 0:00:05]} 65. Kxa6 {[%clk 0:00:11]}  Kb8 {[%clk 0:00:06]} 66. Kb6 {[%clk 0:00:11]}  Kc8 {[%clk 0:00:06]} 67. Ka7 {[%clk 0:00:12]}  Kc7 {[%clk 0:00:07]} 68. b4 {[%clk 0:00:12]}  Kc6 {[%clk 0:00:08]} 69. Ka6 {[%clk 0:00:13]}  Kc7 {[%clk 0:00:08]} 70. b5 {[%clk 0:00:12]}  Kc8 {[%clk 0:00:08]} 71. Ka7 {[%clk 0:00:12]}  Kc7 {[%clk 0:00:08]} 72. b6+ {[%clk 0:00:12]}  Kc6 {[%clk 0:00:08]} 73. b7 {[%clk 0:00:13]}  Kd7 {[%clk 0:00:09]} 74. b8=Q {[%clk 0:00:14]}  Ke7 {[%clk 0:00:09]} 75. Qe5+ {[%clk 0:00:13]} 1-0


[Site "https://www.chess.com"]

[Event "Titled Tuesday Blitz November 29 Late 2022"]
[White "Maatman, Nick"]
[Black "Nepo"]
[WhiteFideId "1040391"]
[WhiteElo "2652"]
[BlackElo "2208"]
[Result "1-0"]
[Round "05"]
[TimeControl "180+1"]
[Date "2022.11.30"]
[WhiteClock "0:02:29"]
[BlackClock "0:02:28"]

1. d4 {[%clk 0:02:59]}  Nf6 {[%clk 0:02:57]} 2. c4 {[%clk 0:02:59]}  e6 {[%clk 0:02:58]} 3. Nf3 {[%clk 0:03:00]}  d5 {[%clk 0:02:58]} 4. g3 {[%clk 0:03:00]}  Bb4+ {[%clk 0:02:58]} 5. Nbd2 {[%clk 0:03:00]}  O-O {[%clk 0:02:56]} 6. Bg2 {[%clk 0:03:00]}  c6 {[%clk 0:02:50]} 7. O-O {[%clk 0:02:59]}  Bxd2 {[%clk 0:02:50]} 8. Qxd2 {[%clk 0:02:52]}  dxc4 {[%clk 0:02:50]} 9. Ne5 {[%clk 0:02:52]}  Nd5 {[%clk 0:02:45]} 10. Nxc4 {[%clk 0:02:51]}  Nd7 {[%clk 0:02:46]} 11. a3 {[%clk 0:02:49]}  N7b6 {[%clk 0:02:44]} 12. Qc2 {[%clk 0:02:48]}  Nxc4 {[%clk 0:02:44]} 13. Qxc4 {[%clk 0:02:49]}  Nb6 {[%clk 0:02:43]} 14. Qd3 {[%clk 0:02:47]}  Qe7 {[%clk 0:02:42]} 15. Rd1 {[%clk 0:02:43]}  e5 {[%clk 0:02:42]} 16. Be3 {[%clk 0:02:34]}  exd4 {[%clk 0:02:38]} 17. Bxd4 {[%clk 0:02:34]}  Be6 {[%clk 0:02:39]} 18. Qc3 {[%clk 0:02:30]}  f6 {[%clk 0:02:35]} 19. Bc5 {[%clk 0:02:30]}  Na4 {[%clk 0:02:28]} 20. Bxe7 {[%clk 0:02:30]}  Nxc3 {[%clk 0:02:28]} 21. bxc3 {[%clk 0:02:29]} 1-0


[Site "https://www.chess.com"]

[Event "Titled Tuesday Blitz November 29 Late 2022"]
[White "Manelyuk, Daniil"]
[Black "Shapiro, Daniel"]
[WhiteFideId "44173920"]
[BlackFideId "2001780"]
[WhiteElo "2209"]
[BlackElo "2332"]
[Result "1-0"]
[Round "05"]
[TimeControl "180+1"]
[Date "2022.11.30"]
[WhiteClock "0:00:30"]
[BlackClock "0:00:01"]

1. e4 {[%clk 0:03:00]}  e5 {[%clk 0:02:59]} 2. Nf3 {[%clk 0:03:00]}  Nc6 {[%clk 0:02:59]} 3. Bb5 {[%clk 0:03:00]}  a6 {[%clk 0:02:59]} 4. Ba4 {[%clk 0:03:00]}  Nf6 {[%clk 0:02:58]} 5. O-O {[%clk 0:03:00]}  Be7 {[%clk 0:02:58]} 6. Re1 {[%clk 0:02:56]}  b5 {[%clk 0:02:58]} 7. Bb3 {[%clk 0:02:56]}  d6 {[%clk 0:02:58]} 8. c3 {[%clk 0:02:55]}  O-O {[%clk 0:02:58]} 9. h3 {[%clk 0:02:56]}  Na5 {[%clk 0:02:58]} 10. Bc2 {[%clk 0:02:56]}  c5 {[%clk 0:02:59]} 11. d4 {[%clk 0:02:56]}  Nd7 {[%clk 0:02:58]} 12. Nbd2 {[%clk 0:02:54]}  cxd4 {[%clk 0:02:58]} 13. cxd4 {[%clk 0:02:55]}  Nc6 {[%clk 0:02:58]} 14. d5 {[%clk 0:02:53]}  Nb4 {[%clk 0:02:58]} 15. Bb1 {[%clk 0:02:53]}  a5 {[%clk 0:02:59]} 16. a3 {[%clk 0:02:52]}  Na6 {[%clk 0:02:59]} 17. b4 {[%clk 0:02:52]}  a4 {[%clk 0:02:14]} 18. Bb2 {[%clk 0:02:47]}  Nc7 {[%clk 0:02:05]} 19. Bd3 {[%clk 0:02:46]}  Rb8 {[%clk 0:02:03]} 20. Rc1 {[%clk 0:02:46]}  Ne8 {[%clk 0:02:03]} 21. Rc6 {[%clk 0:02:38]}  Ndf6 {[%clk 0:01:44]} 22. Qe2 {[%clk 0:02:30]}  Bd7 {[%clk 0:01:39]} 23. Bxb5 {[%clk 0:02:26]}  Bxc6 {[%clk 0:01:22]} 24. Bxc6 {[%clk 0:02:27]}  Rc8 {[%clk 0:01:10]} 25. Bxa4 {[%clk 0:02:24]}  Qb6 {[%clk 0:01:10]} 26. Bc6 {[%clk 0:02:20]}  g6 {[%clk 0:01:09]} 27. Nc4 {[%clk 0:02:19]}  Qa7 {[%clk 0:01:06]} 28. b5 {[%clk 0:02:18]}  Ng7 {[%clk 0:00:55]} 29. b6 {[%clk 0:01:56]}  Qa6 {[%clk 0:00:55]} 30. a4 {[%clk 0:01:56]}  Nfh5 {[%clk 0:00:48]} 31. Bb5 {[%clk 0:01:49]}  Qa8 {[%clk 0:00:39]} 32. a5 {[%clk 0:01:48]}  Rc5 {[%clk 0:00:39]} 33. Bc6 {[%clk 0:01:34]}  Qa6 {[%clk 0:00:39]} 34. Rc1 {[%clk 0:01:26]}  Nf4 {[%clk 0:00:35]} 35. Qf1 {[%clk 0:01:12]}  f5 {[%clk 0:00:35]} 36. Nfd2 {[%clk 0:01:12]}  fxe4 {[%clk 0:00:29]} 37. Nxe4 {[%clk 0:01:12]}  Rxd5 {[%clk 0:00:29]} 38. Bxd5+ {[%clk 0:01:11]}  Nxd5 {[%clk 0:00:29]} 39. Ncxd6 {[%clk 0:00:42]}  Qxa5 {[%clk 0:00:25]} 40. Nc4 {[%clk 0:00:37]}  Qb5 {[%clk 0:00:22]} 41. Bxe5 {[%clk 0:00:38]}  Nxb6 {[%clk 0:00:16]} 42. Nxb6 {[%clk 0:00:32]}  Qxb6 {[%clk 0:00:15]} 43. Qc4+ {[%clk 0:00:31]}  Kh8 {[%clk 0:00:13]} 44. Bd4 {[%clk 0:00:31]}  Qb7 {[%clk 0:00:08]} 45. Qc3 {[%clk 0:00:30]}  Bd8 {[%clk 0:00:04]} 46. Nc5 {[%clk 0:00:27]}  Qf7 {[%clk 0:00:03]} 47. Bxg7+ {[%clk 0:00:26]}  Qxg7 {[%clk 0:00:03]} 48. Qxg7+ {[%clk 0:00:27]}  Kxg7 {[%clk 0:00:01]} 49. Ne6+ {[%clk 0:00:28]}  Kf7 {[%clk 0:00:02]} 50. Nxf8 {[%clk 0:00:29]}  Kxf8 {[%clk 0:00:03]} 51. Rd1 {[%clk 0:00:29]}  Ke8 {[%clk 0:00:02]} 52. g3 {[%clk 0:00:29]}  Bb6 {[%clk 0:00:02]} 53. Kg2 {[%clk 0:00:30]}  Ke7 {[%clk 0:00:01]} 54. f4 {[%clk 0:00:30]}  Be3 {[%clk 0:00:01]} 55. Kf3 {[%clk 0:00:30]} 1-0


[Site "https://www.chess.com"]

[Event "Titled Tuesday Blitz November 29 Late 2022"]
[White "Martinez Ramirez, Lennis"]
[Black "Kowalski, Igor"]
[WhiteFideId "3509079"]
[BlackFideId "1172468"]
[WhiteElo "2439"]
[BlackElo "2317"]
[Result "0-1"]
[Round "05"]
[TimeControl "180+1"]
[Date "2022.11.30"]
[WhiteClock "0:00:05"]
[BlackClock "0:00:08"]

1. c4 {[%clk 0:03:00]}  Nf6 {[%clk 0:02:59]} 2. d4 {[%clk 0:03:00]}  g6 {[%clk 0:03:00]} 3. Nc3 {[%clk 0:02:59]}  Bg7 {[%clk 0:03:00]} 4. e4 {[%clk 0:02:56]}  O-O {[%clk 0:03:00]} 5. Nf3 {[%clk 0:02:54]}  d6 {[%clk 0:02:59]} 6. h3 {[%clk 0:02:55]}  Nbd7 {[%clk 0:02:58]} 7. Bd3 {[%clk 0:02:54]}  c5 {[%clk 0:02:58]} 8. d5 {[%clk 0:02:53]}  a6 {[%clk 0:02:58]} 9. a4 {[%clk 0:02:52]}  e5 {[%clk 0:02:51]} 10. g4 {[%clk 0:02:44]}  Ne8 {[%clk 0:02:47]} 11. Rg1 {[%clk 0:02:43]}  Nc7 {[%clk 0:02:09]} 12. h4 {[%clk 0:02:43]}  Rb8 {[%clk 0:02:07]} 13. h5 {[%clk 0:02:40]}  b5 {[%clk 0:02:07]} 14. axb5 {[%clk 0:02:36]}  axb5 {[%clk 0:02:07]} 15. cxb5 {[%clk 0:02:36]}  Nb6 {[%clk 0:02:07]} 16. b3 {[%clk 0:02:35]}  Bd7 {[%clk 0:01:55]} 17. Bg5 {[%clk 0:02:27]}  Qe8 {[%clk 0:01:55]} 18. h6 {[%clk 0:02:23]}  Bh8 {[%clk 0:01:53]} 19. Ra5 {[%clk 0:02:20]}  Nc8 {[%clk 0:01:40]} 20. Qe2 {[%clk 0:02:19]}  f6 {[%clk 0:01:37]} 21. Be3 {[%clk 0:02:18]}  Qd8 {[%clk 0:01:38]} 22. Ra2 {[%clk 0:02:13]}  Qe8 {[%clk 0:01:32]} 23. Ra5 {[%clk 0:02:05]}  Qd8 {[%clk 0:01:22]} 24. Qa2 {[%clk 0:02:02]}  Nb6 {[%clk 0:01:17]} 25. Nd2 {[%clk 0:02:01]}  Ra8 {[%clk 0:01:10]} 26. Nc4 {[%clk 0:02:01]}  Nxb5 {[%clk 0:00:29]} 27. Nxb5 {[%clk 0:01:51]}  Bxb5 {[%clk 0:00:29]} 28. Nxb6 {[%clk 0:01:28]}  Rxa5 {[%clk 0:00:28]} 29. Qxa5 {[%clk 0:01:28]}  Bxd3 {[%clk 0:00:29]} 30. f3 {[%clk 0:01:25]}  Qc7 {[%clk 0:00:29]} 31. b4 {[%clk 0:01:14]}  cxb4 {[%clk 0:00:25]} 32. Qxb4 {[%clk 0:01:12]}  Rb8 {[%clk 0:00:17]} 33. Kf2 {[%clk 0:01:09]}  Qc2+ {[%clk 0:00:16]} 34. Kg3 {[%clk 0:01:09]}  Rd8 {[%clk 0:00:13]} 35. Rc1 {[%clk 0:01:00]}  Qe2 {[%clk 0:00:13]} 36. Bf2 {[%clk 0:00:29]}  f5 {[%clk 0:00:13]} 37. Nc8 {[%clk 0:00:21]}  fxe4 {[%clk 0:00:11]} 38. Ne7+ {[%clk 0:00:20]}  Kf7 {[%clk 0:00:11]} 39. fxe4 {[%clk 0:00:20]}  Bxe4 {[%clk 0:00:11]} 40. Rc3 {[%clk 0:00:19]}  Kxe7 {[%clk 0:00:10]} 41. Re3 {[%clk 0:00:19]}  Qc2 {[%clk 0:00:09]} 42. Rxe4 {[%clk 0:00:19]}  Bf6 {[%clk 0:00:09]} 43. Kg2 {[%clk 0:00:18]}  Bh4 {[%clk 0:00:08]} 44. Qb6 {[%clk 0:00:09]}  Qxe4+ {[%clk 0:00:08]} 45. Kh3 {[%clk 0:00:07]}  Bxf2 {[%clk 0:00:08]} 46. Qxf2 {[%clk 0:00:07]}  Rf8 {[%clk 0:00:09]} 47. Qa7+ {[%clk 0:00:06]}  Ke8 {[%clk 0:00:05]} 48. Qb8+ {[%clk 0:00:05]}  Ke7 {[%clk 0:00:06]} 49. Qc7+ {[%clk 0:00:04]}  Kf6 {[%clk 0:00:06]} 50. Qg7+ {[%clk 0:00:04]}  Kg5 {[%clk 0:00:07]} 51. Qxf8 {[%clk 0:00:04]}  Qxg4+ {[%clk 0:00:07]} 52. Kh2 {[%clk 0:00:05]}  Qf4+ {[%clk 0:00:08]} 53. Kg2 {[%clk 0:00:05]}  Qxf8 {[%clk 0:00:08]} 0-1


[Site "https://www.chess.com"]

[Event "Titled Tuesday Blitz November 29 Late 2022"]
[White "Martinez Reyes, Pedro Ramon"]
[Black "Battlecruiser_Operational"]
[WhiteFideId "3901807"]
[WhiteElo "2354"]
[BlackElo "2172"]
[Result "1-0"]
[Round "05"]
[TimeControl "180+1"]
[Date "2022.11.30"]
[WhiteClock "0:00:03"]
[BlackClock "0:00:06"]

1. f4 {[%clk 0:03:00]}  c6 {[%clk 0:03:00]} 2. Nf3 {[%clk 0:03:00]}  d5 {[%clk 0:02:58]} 3. b3 {[%clk 0:02:59]}  Nf6 {[%clk 0:02:58]} 4. e3 {[%clk 0:03:00]}  g6 {[%clk 0:02:59]} 5. Bb2 {[%clk 0:03:00]}  Bg7 {[%clk 0:02:59]} 6. Be2 {[%clk 0:03:00]}  O-O {[%clk 0:02:59]} 7. O-O {[%clk 0:03:00]}  Nbd7 {[%clk 0:02:53]} 8. a4 {[%clk 0:03:00]}  a5 {[%clk 0:02:53]} 9. Qe1 {[%clk 0:02:55]}  e6 {[%clk 0:02:52]} 10. h3 {[%clk 0:02:38]}  b6 {[%clk 0:02:51]} 11. d3 {[%clk 0:02:31]}  Ba6 {[%clk 0:02:41]} 12. Nbd2 {[%clk 0:02:29]}  Rc8 {[%clk 0:02:35]} 13. e4 {[%clk 0:02:21]}  b5 {[%clk 0:02:19]} 14. e5 {[%clk 0:02:18]}  Ne8 {[%clk 0:02:14]} 15. h4 {[%clk 0:01:53]}  bxa4 {[%clk 0:02:09]} 16. Rxa4 {[%clk 0:01:51]}  Ra8 {[%clk 0:01:40]} 17. h5 {[%clk 0:01:49]}  Bb5 {[%clk 0:01:39]} 18. Ra1 {[%clk 0:01:41]}  a4 {[%clk 0:01:39]} 19. hxg6 {[%clk 0:01:41]}  fxg6 {[%clk 0:01:38]} 20. Ng5 {[%clk 0:01:40]}  Nc7 {[%clk 0:01:33]} 21. c4 {[%clk 0:01:35]}  Ba6 {[%clk 0:01:29]} 22. Rxa4 {[%clk 0:01:35]}  Nxe5 {[%clk 0:01:24]} 23. Nxh7 {[%clk 0:00:58]}  Nxd3 {[%clk 0:00:54]} 24. Bxd3 {[%clk 0:00:55]}  Kxh7 {[%clk 0:00:54]} 25. Qg3 {[%clk 0:00:47]}  Qe8 {[%clk 0:00:43]} 26. Bxg7 {[%clk 0:00:30]}  Kxg7 {[%clk 0:00:44]} 27. Nf3 {[%clk 0:00:27]}  dxc4 {[%clk 0:00:19]} 28. bxc4 {[%clk 0:00:28]}  Bb7 {[%clk 0:00:17]} 29. Rxa8 {[%clk 0:00:27]}  Nxa8 {[%clk 0:00:17]} 30. Ne5 {[%clk 0:00:27]}  Rf6 {[%clk 0:00:16]} 31. Rb1 {[%clk 0:00:21]}  Ba6 {[%clk 0:00:12]} 32. Ra1 {[%clk 0:00:17]}  Bb7 {[%clk 0:00:10]} 33. Ra7 {[%clk 0:00:17]}  Qb8 {[%clk 0:00:10]} 34. Qe3 {[%clk 0:00:14]}  Nc7 {[%clk 0:00:07]} 35. Qb6 {[%clk 0:00:13]}  Rxf4 {[%clk 0:00:07]} 36. Qxb7 {[%clk 0:00:12]}  Qf8 {[%clk 0:00:05]} 37. Qxc7+ {[%clk 0:00:13]}  Kh6 {[%clk 0:00:05]} 38. Qh7+ {[%clk 0:00:06]}  Kg5 {[%clk 0:00:05]} 39. Rf7 {[%clk 0:00:05]}  Qc5+ {[%clk 0:00:04]} 40. Kh2 {[%clk 0:00:03]}  Qxe5 {[%clk 0:00:04]} 41. Rxf4 {[%clk 0:00:01]}  Qxf4+ {[%clk 0:00:05]} 42. g3 {[%clk 0:00:02]}  Qd2+ {[%clk 0:00:05]} 43. Kh3 {[%clk 0:00:02]}  Qxd3 {[%clk 0:00:06]} 44. Qh4+ {[%clk 0:00:03]}  Kf5 {[%clk 0:00:06]} 45. Qf4# {[%clk 0:00:03]} 1-0


[Site "https://www.chess.com"]

[Event "Titled Tuesday Blitz November 29 Late 2022"]
[White "Meduri, Aakaash"]
[Black "Curtis, John"]
[WhiteFideId "2032252"]
[BlackFideId "3200256"]
[WhiteElo "2113"]
[BlackElo "2203"]
[Result "0-1"]
[Round "05"]
[TimeControl "180+1"]
[Date "2022.11.30"]
[WhiteClock "0:00:10"]
[BlackClock "0:00:21"]

1. d4 {[%clk 0:03:00]}  Nf6 {[%clk 0:02:59]} 2. Bf4 {[%clk 0:02:59]}  Nh5 {[%clk 0:02:56]} 3. Bg5 {[%clk 0:02:56]}  h6 {[%clk 0:02:56]} 4. Bh4 {[%clk 0:02:56]}  g5 {[%clk 0:02:55]} 5. e3 {[%clk 0:02:55]}  Nf6 {[%clk 0:02:49]} 6. Bg3 {[%clk 0:02:55]}  d6 {[%clk 0:02:49]} 7. Bd3 {[%clk 0:02:54]}  Nc6 {[%clk 0:02:42]} 8. h3 {[%clk 0:02:45]}  Nb4 {[%clk 0:02:40]} 9. Bc4 {[%clk 0:02:39]}  Bf5 {[%clk 0:02:25]} 10. Bb3 {[%clk 0:02:39]}  Ne4 {[%clk 0:02:08]} 11. Bh2 {[%clk 0:02:39]}  Bg7 {[%clk 0:01:51]} 12. a3 {[%clk 0:02:37]}  Nc6 {[%clk 0:01:51]} 13. Ne2 {[%clk 0:02:36]}  O-O {[%clk 0:01:37]} 14. Nd2 {[%clk 0:02:35]}  Nxd2 {[%clk 0:01:36]} 15. Qxd2 {[%clk 0:02:35]}  e5 {[%clk 0:01:36]} 16. O-O {[%clk 0:02:34]}  exd4 {[%clk 0:01:35]} 17. Nxd4 {[%clk 0:02:32]}  Nxd4 {[%clk 0:01:35]} 18. exd4 {[%clk 0:02:33]}  Qd7 {[%clk 0:01:33]} 19. Rfe1 {[%clk 0:02:28]}  Rfe8 {[%clk 0:01:31]} 20. c3 {[%clk 0:02:27]}  d5 {[%clk 0:01:29]} 21. Re2 {[%clk 0:02:22]}  Rxe2 {[%clk 0:01:28]} 22. Qxe2 {[%clk 0:02:22]}  Re8 {[%clk 0:01:26]} 23. Qd2 {[%clk 0:02:20]}  c6 {[%clk 0:01:26]} 24. Bc2 {[%clk 0:02:17]}  Bxc2 {[%clk 0:01:23]} 25. Qxc2 {[%clk 0:02:17]}  Qe6 {[%clk 0:01:23]} 26. Bg3 {[%clk 0:02:18]}  Qe2 {[%clk 0:01:23]} 27. Qb3 {[%clk 0:02:13]}  b5 {[%clk 0:01:22]} 28. a4 {[%clk 0:02:11]}  Qc4 {[%clk 0:01:19]} 29. Qxc4 {[%clk 0:01:52]}  bxc4 {[%clk 0:01:18]} 30. Kf1 {[%clk 0:01:52]}  Re7 {[%clk 0:01:17]} 31. Ra2 {[%clk 0:01:41]}  f5 {[%clk 0:01:16]} 32. Bd6 {[%clk 0:01:41]}  Rb7 {[%clk 0:01:06]} 33. Ke2 {[%clk 0:01:41]}  h5 {[%clk 0:00:59]} 34. Kd2 {[%clk 0:01:39]}  Kf7 {[%clk 0:00:55]} 35. Kc2 {[%clk 0:01:39]}  g4 {[%clk 0:00:47]} 36. Ra1 {[%clk 0:01:32]}  Rd7 {[%clk 0:00:46]} 37. Bc5 {[%clk 0:01:30]}  a6 {[%clk 0:00:46]} 38. Re1 {[%clk 0:01:30]}  Bf6 {[%clk 0:00:44]} 39. b3 {[%clk 0:01:25]}  cxb3+ {[%clk 0:00:44]} 40. Kxb3 {[%clk 0:01:26]}  Rb7+ {[%clk 0:00:43]} 41. Kc2 {[%clk 0:01:26]}  Rb8 {[%clk 0:00:42]} 42. hxg4 {[%clk 0:01:18]}  fxg4 {[%clk 0:00:41]} 43. Rh1 {[%clk 0:01:17]}  h4 {[%clk 0:00:42]} 44. Bd6 {[%clk 0:01:08]}  Re8 {[%clk 0:00:43]} 45. Kd3 {[%clk 0:01:07]}  Kg6 {[%clk 0:00:41]} 46. Bf4 {[%clk 0:01:04]}  Kf5 {[%clk 0:00:41]} 47. Bd6 {[%clk 0:01:02]}  Re6 {[%clk 0:00:35]} 48. Bc7 {[%clk 0:01:00]}  Re7 {[%clk 0:00:35]} 49. Bd6 {[%clk 0:01:00]}  Rh7 {[%clk 0:00:35]} 50. c4 {[%clk 0:00:40]}  h3 {[%clk 0:00:34]} 51. gxh3 {[%clk 0:00:39]}  Rxh3+ {[%clk 0:00:33]} 52. Rxh3 {[%clk 0:00:39]}  gxh3 {[%clk 0:00:33]} 53. cxd5 {[%clk 0:00:35]}  cxd5 {[%clk 0:00:34]} 54. Ke3 {[%clk 0:00:14]}  Kg4 {[%clk 0:00:23]} 55. Bf4 {[%clk 0:00:10]}  Bxd4+ {[%clk 0:00:21]} 0-1


[Site "https://www.chess.com"]

[Event "Titled Tuesday Blitz November 29 Late 2022"]
[White "Melaugh, Shane"]
[Black "Yi, Richard"]
[WhiteFideId "2509580"]
[BlackFideId "2079518"]
[WhiteElo "2025"]
[BlackElo "2147"]
[Result "1-0"]
[Round "05"]
[TimeControl "180+1"]
[Date "2022.11.30"]
[WhiteClock "0:00:33"]
[BlackClock "0:00:02"]

1. c4 {[%clk 0:03:00]}  Nf6 {[%clk 0:02:48]} 2. Nc3 {[%clk 0:03:00]}  d5 {[%clk 0:02:48]} 3. cxd5 {[%clk 0:03:00]}  Nxd5 {[%clk 0:02:49]} 4. e4 {[%clk 0:03:00]}  Nxc3 {[%clk 0:02:49]} 5. bxc3 {[%clk 0:03:01]}  g6 {[%clk 0:02:45]} 6. d4 {[%clk 0:03:00]}  Bg7 {[%clk 0:02:46]} 7. Nf3 {[%clk 0:03:01]}  c5 {[%clk 0:02:46]} 8. Be2 {[%clk 0:03:01]}  O-O {[%clk 0:02:44]} 9. O-O {[%clk 0:03:00]}  Bg4 {[%clk 0:02:44]} 10. Be3 {[%clk 0:02:57]}  cxd4 {[%clk 0:02:43]} 11. cxd4 {[%clk 0:02:55]}  Nc6 {[%clk 0:02:41]} 12. e5 {[%clk 0:02:55]}  e6 {[%clk 0:02:39]} 13. h3 {[%clk 0:02:50]}  Bxf3 {[%clk 0:02:37]} 14. Bxf3 {[%clk 0:02:51]}  Qd7 {[%clk 0:02:37]} 15. Rb1 {[%clk 0:02:49]}  Rfd8 {[%clk 0:02:35]} 16. Bxc6 {[%clk 0:02:47]}  Qxc6 {[%clk 0:02:32]} 17. Qb3 {[%clk 0:02:46]}  Rd7 {[%clk 0:02:31]} 18. Rfc1 {[%clk 0:02:46]}  Qa6 {[%clk 0:02:26]} 19. Qc4 {[%clk 0:02:06]}  Qxc4 {[%clk 0:02:02]} 20. Rxc4 {[%clk 0:02:07]}  Bf8 {[%clk 0:02:00]} 21. Rbc1 {[%clk 0:02:05]}  h6 {[%clk 0:01:56]} 22. Rc8 {[%clk 0:02:03]}  Rxc8 {[%clk 0:01:34]} 23. Rxc8 {[%clk 0:02:04]}  g5 {[%clk 0:01:33]} 24. h4 {[%clk 0:01:59]}  Kg7 {[%clk 0:01:08]} 25. hxg5 {[%clk 0:01:56]}  hxg5 {[%clk 0:01:08]} 26. Bxg5 {[%clk 0:01:56]}  Be7 {[%clk 0:01:07]} 27. Be3 {[%clk 0:01:43]}  a5 {[%clk 0:00:59]} 28. Ra8 {[%clk 0:01:40]}  Bb4 {[%clk 0:00:58]} 29. Rc8 {[%clk 0:01:39]}  Be7 {[%clk 0:00:41]} 30. Kf1 {[%clk 0:01:38]}  f6 {[%clk 0:00:32]} 31. exf6+ {[%clk 0:01:26]}  Bxf6 {[%clk 0:00:33]} 32. Ke2 {[%clk 0:01:20]}  Kg6 {[%clk 0:00:32]} 33. Rc5 {[%clk 0:01:15]}  b6 {[%clk 0:00:22]} 34. Rc6 {[%clk 0:01:14]}  Kf5 {[%clk 0:00:19]} 35. Rxb6 {[%clk 0:01:01]}  Bd8 {[%clk 0:00:13]} 36. Rb5+ {[%clk 0:01:01]}  Kg6 {[%clk 0:00:13]} 37. Kd3 {[%clk 0:00:58]}  Rh7 {[%clk 0:00:12]} 38. g3 {[%clk 0:00:57]}  Rh1 {[%clk 0:00:12]} 39. Rb8 {[%clk 0:00:50]}  Be7 {[%clk 0:00:09]} 40. Rb6 {[%clk 0:00:46]}  Kf6 {[%clk 0:00:05]} 41. d5 {[%clk 0:00:44]}  Ra1 {[%clk 0:00:04]} 42. Rxe6+ {[%clk 0:00:43]}  Kf7 {[%clk 0:00:05]} 43. Ra6 {[%clk 0:00:38]}  Rxa2 {[%clk 0:00:05]} 44. Ke4 {[%clk 0:00:38]}  a4 {[%clk 0:00:03]} 45. d6 {[%clk 0:00:39]}  Bd8 {[%clk 0:00:03]} 46. Ke5 {[%clk 0:00:36]}  Bf6+ {[%clk 0:00:02]} 47. Kf5 {[%clk 0:00:36]}  Bd8 {[%clk 0:00:02]} 48. Ra7+ {[%clk 0:00:36]}  Ke8 {[%clk 0:00:02]} 49. Ke6 {[%clk 0:00:35]}  a3 {[%clk 0:00:02]} 50. d7+ {[%clk 0:00:33]}  Kf8 {[%clk 0:00:02]} 51. Ra8 {[%clk 0:00:34]}  Kg7 {[%clk 0:00:02]} 52. Rxd8 {[%clk 0:00:33]}  Rc2 {[%clk 0:00:02]} 53. Rc8 {[%clk 0:00:33]}  Rxc8 {[%clk 0:00:02]} 1-0


[Site "https://www.chess.com"]